bitfinex/quotes_BTCUSD_20241111
["timestamp","ask_amount","ask_price","bid_price","bid_amount"]
[1731311413704,0.18536941,81089.0,81085.0,0.246654]
[1731311413975,0.18536941,81089.0,81088.0,0.44886571]
[1731311414380,0.18536941,81099.0,81098.0,0.123307]
[1731311415064,0.000843,81100.0,81099.0,0.123306]
[1731311417017,0.12678521,81100.0,81093.0,0.123313]
[1731311417229,0.12678521,81100.0,81088.0,0.0824]
[1731311417230,0.1636561,81100.0,81099.0,0.123306]
[1731311417437,0.1636561,81100.0,81099.0,0.001]
[1731311417654,0.12678521,81100.0,81099.0,0.001]
[1731311417906,0.12678521,81100.0,81099.0,0.002]
[1731311418335,0.12678521,81100.0,81097.0,0.123308]
[1731311418562,0.12678521,81100.0,81099.0,0.124306]
[1731311419150,0.12678521,81100.0,81099.0,0.001]
[1731311419812,0.12678521,81100.0,81099.0,0.124306]
[1731311420189,0.12678521,81100.0,81099.0,0.123306]
[1731311420411,0.12678521,81100.0,81097.0,0.001]
[1731311420601,0.12678521,81100.0,81091.0,0.246634]
[1731311420808,0.13478521,81100.0,81099.0,0.001]
[1731311421020,0.13478521,81100.0,81099.0,0.002]
[1731311421222,0.12678521,81100.0,81098.0,0.123307]
[1731311421650,0.14078521,81100.0,81098.0,0.123307]
[1731311421860,0.14078521,81100.0,81097.0,0.001]
[1731311422070,0.12678521,81100.0,81099.0,0.001]
[1731311422484,0.14078521,81100.0,81099.0,0.001]
[1731311423261,0.14078521,81100.0,81098.0,0.001]
[1731311423477,0.26409021,81100.0,81098.0,0.001]
[1731311423674,0.12678521,81100.0,81098.0,0.001]
[1731311423895,0.12678521,81100.0,81096.0,0.123309]
[1731311424100,0.14078521,81100.0,81099.0,0.001]
[1731311424431,0.14078521,81100.0,81099.0,0.125306]
[1731311424639,0.12678521,81100.0,81098.0,0.123307]
[1731311424855,0.12678521,81100.0,81098.0,0.125307]
[1731311425080,0.14078521,81100.0,81098.0,0.001]
[1731311425526,0.12678521,81100.0,81092.0,0.246633]
[1731311425744,0.12678521,81100.0,81098.0,0.123307]
[1731311425943,0.12678521,81100.0,81097.0,0.123308]
[1731311426638,0.12678521,81100.0,81099.0,0.001]
[1731311426875,0.14078521,81100.0,81099.0,0.001]
[1731311427249,0.12678521,81100.0,81098.0,0.123306]
[1731311427652,0.002,81098.0,81097.0,0.124309]
[1731311428226,0.002,81098.0,81097.0,0.123309]
[1731311428647,0.14078521,81100.0,81097.0,0.123309]
[1731311428851,0.12594221,81099.0,81097.0,0.123309]
[1731311429272,0.12594221,81099.0,81095.0,0.246623]
[1731311429450,0.12594221,81099.0,81087.0,0.0495]
[1731311429451,0.12594221,81099.0,81094.0,0.123313]
[1731311429650,0.12594221,81099.0,81098.0,0.001]
[1731311429837,0.12594221,81099.0,81097.0,0.123308]
[1731311430048,0.008,81098.0,81097.0,0.124308]
[1731311430277,0.008,81098.0,81097.0,0.205608]
[1731311430491,0.000843,81100.0,81099.0,0.123306]
[1731311430691,0.000843,81100.0,81099.0,0.49481549]
[1731311430892,0.000843,81100.0,81099.0,0.49234971]
[1731311431526,0.000843,81100.0,81099.0,0.49334971]
[1731311432752,0.000843,81100.0,81099.0,0.49234971]
[1731311433078,0.000843,81100.0,81099.0,0.49334971]
[1731311433619,0.000843,81100.0,81099.0,0.49534971]
[1731311434324,0.000843,81100.0,81099.0,0.49434971]
[1731311434527,0.000843,81100.0,81099.0,0.49334971]
[1731311434736,0.000843,81100.0,81099.0,0.49534971]
[1731311436988,0.000843,81100.0,81099.0,0.352206]
[1731311437585,0.000843,81100.0,81099.0,0.349206]
[1731311437800,0.000843,81100.0,81099.0,0.352206]
[1731311439346,0.000843,81100.0,81099.0,0.50514821]
[1731311439579,0.000843,81100.0,81099.0,0.50614821]
[1731311439823,0.00184977,81115.0,81114.0,0.250783]
[1731311440938,0.00384977,81115.0,81114.0,0.250783]
[1731311441141,0.00384977,81115.0,81114.0,0.252783]
[1731311441345,0.00384977,81115.0,81114.0,0.250783]
[1731311441568,0.00384977,81115.0,81114.0,0.252783]
[1731311441772,0.00384977,81115.0,81114.0,0.125283]
[1731311442217,0.00184977,81115.0,81114.0,0.125283]
[1731311442442,0.00184977,81115.0,81114.0,0.126283]
[1731311445767,0.00184977,81115.0,81114.0,0.226283]
[1731311448603,0.00184977,81115.0,81114.0,0.126283]
[1731311449582,0.00269177,81115.0,81114.0,0.126283]
[1731311451552,0.00269177,81115.0,81114.0,0.124283]
[1731311451764,0.00269177,81115.0,81114.0,0.125283]
[1731311451932,0.00269177,81115.0,81114.0,0.123283]
[1731311452202,0.00269177,81115.0,81114.0,0.124283]
[1731311452541,0.03936879,81115.0,81114.0,0.123283]
[1731311452940,0.04136879,81115.0,81114.0,0.123283]
[1731311453623,0.00469177,81115.0,81114.0,0.123283]
[1731311454269,0.00469177,81115.0,81112.0,0.123285]
[1731311454472,0.03675665,81113.0,81106.0,0.246589]
[1731311454696,0.03676732,81110.0,81103.0,0.0455]
[1731311454901,0.03676732,81107.0,81106.0,0.123295]
[1731311455110,0.05501554,81109.0,81108.0,0.123292]
[1731311455313,0.20908618,81111.0,81110.0,0.123289]
[1731311455531,0.13573217,81111.0,81110.0,0.123289]
[1731311455838,0.07356116,81111.0,81110.0,0.123289]
[1731311456810,0.07356116,81111.0,81106.0,0.247588]
[1731311456811,0.07356116,81113.0,81112.0,0.123286]
[1731311457032,0.00269177,81115.0,81111.0,0.250687]
[1731311457033,0.03678887,81112.0,81111.0,0.250687]
[1731311457234,0.00269177,81115.0,81114.0,0.123283]
[1731311458388,0.03947849,81115.0,81114.0,0.123283]
[1731311458618,0.05787185,81115.0,81114.0,0.123283]
[1731311459180,0.07626521,81115.0,81114.0,0.123283]
[1731311459385,0.00469177,81115.0,81108.0,0.246584]
[1731311459618,0.0552265,81111.0,81110.0,0.123289]
[1731311460258,0.07363534,81113.0,81107.0,0.246587]
[1731311460471,0.05522969,81108.0,81107.0,0.246587]
[1731311460695,0.05522969,81108.0,81107.0,0.36988]
[1731311461197,0.4287569,81108.0,81096.0,0.246618]
[1731311461418,0.4287569,81108.0,81079.0,0.43704141]
[1731311461419,0.123307,81098.0,81088.0,0.0776]
[1731311461633,0.12594221,81098.0,81097.0,0.124993]
[1731311461853,0.13593128,81098.0,81097.0,0.124993]
[1731311462067,0.00469177,81115.0,81094.0,0.246625]
[1731311462068,0.03682141,81101.0,81098.0,0.1274]
[1731311462284,0.03682141,81105.0,81104.0,0.123298]
[1731311462494,0.18536941,81107.0,81105.0,0.123296]
[1731311462495,0.03682141,81106.0,81105.0,0.123296]
[1731311462701,0.22219082,81107.0,81106.0,0.123295]
[1731311462918,0.03682141,81107.0,81106.0,0.123295]
[1731311463988,0.03682141,81108.0,81107.0,0.123293]
[1731311465672,0.03682141,81109.0,81108.0,0.123292]
[1731311466762,0.13746446,81114.0,81105.0,0.246593]
[1731311466763,0.03682141,81111.0,81110.0,0.123289]
[1731311466998,0.03951318,81115.0,81111.0,0.0483]
[1731311467280,0.00269177,81115.0,81114.0,0.202383]
[1731311469348,0.00269177,81115.0,81114.0,0.203383]
[1731311470024,0.00269177,81115.0,81114.0,0.205383]
[1731311480721,0.000842,81115.0,81114.0,0.252783]
[1731311481507,0.000842,81115.0,81114.0,0.251783]
[1731311481700,0.000842,81115.0,81114.0,0.249783]
[1731311481902,0.000842,81115.0,81114.0,0.250783]
[1731311482105,0.000842,81115.0,81114.0,0.252783]
[1731311482647,0.000842,81115.0,81114.0,0.251783]
[1731311482793,0.000842,81115.0,81114.0,0.252783]
[1731311483437,0.000842,81115.0,81114.0,0.27824833]
[1731311483635,0.000842,81115.0,81114.0,0.275783]
[1731311483867,0.000842,81115.0,81114.0,0.273783]
[1731311484082,0.000842,81115.0,81114.0,0.272783]
[1731311484236,0.000842,81115.0,81114.0,0.274783]
[1731311484444,0.000842,81115.0,81114.0,0.275783]
[1731311484837,0.000842,81115.0,81114.0,0.274783]
[1731311485221,0.000842,81115.0,81114.0,0.275783]
[1731311485423,0.000842,81115.0,81114.0,0.2782483]
[1731311485621,0.000842,81115.0,81114.0,0.274783]
[1731311486092,0.000842,81115.0,81114.0,0.275783]
[1731311486461,0.000842,81115.0,81114.0,0.273783]
[1731311486637,0.000842,81115.0,81114.0,0.275783]
[1731311487188,0.000842,81115.0,81114.0,0.274783]
[1731311487600,0.000842,81115.0,81114.0,0.41892671]
[1731311488183,0.000842,81115.0,81114.0,0.41792671]
[1731311488723,0.000842,81115.0,81114.0,0.41892671]
[1731311489135,0.000842,81115.0,81114.0,0.41792671]
[1731311489307,0.000842,81115.0,81114.0,0.41592671]
[1731311489632,0.000842,81115.0,81114.0,0.272783]
[1731311489867,0.000842,81115.0,81114.0,0.274783]
[1731311490058,0.000842,81115.0,81114.0,0.272783]
[1731311490278,0.000842,81115.0,81114.0,0.274783]
[1731311491198,0.000842,81115.0,81114.0,0.275783]
[1731311491637,0.000842,81115.0,81114.0,0.50672521]
[1731311493020,0.000842,81115.0,81114.0,0.65486892]
[1731311496050,0.000842,81115.0,81114.0,0.51172521]
[1731311498002,0.000842,81115.0,81114.0,0.380783]
[1731311509049,0.000842,81122.0,81121.0,0.251272]
[1731311509284,0.000842,81122.0,81121.0,0.51521571]
[1731311510376,0.000842,81122.0,81121.0,0.51621571]
[1731311510601,0.000842,81122.0,81121.0,0.51821571]
[1731311511046,0.000842,81122.0,81121.0,0.51721571]
[1731311511255,0.000842,81122.0,81121.0,0.51821571]
[1731311511902,0.000842,81122.0,81121.0,0.51621571]
[1731311512104,0.000842,81122.0,81121.0,0.51821571]
[1731311512548,0.000842,81122.0,81121.0,0.51521571]
[1731311513018,0.000842,81122.0,81121.0,0.51821571]
[1731311516584,0.000842,81122.0,81121.0,0.52286176]
[1731311517717,0.000842,81122.0,81121.0,0.25391805]
[1731311517947,0.000842,81122.0,81121.0,0.44926176]
[1731311518821,0.000842,81122.0,81121.0,0.47226176]
[1731311519717,0.000842,81122.0,81121.0,0.51926176]
[1731311521963,0.000841,81130.0,81121.0,0.51926176]
[1731311521964,0.000841,81130.0,81129.0,0.12326]
[1731311522094,0.000841,81130.0,81129.0,0.64064592]
[1731311523172,0.000841,81130.0,81129.0,0.64164592]
[1731311523704,0.000841,81130.0,81129.0,0.26840371]
[1731311523882,0.000841,81130.0,81129.0,0.26740371]
[1731311524216,0.18536941,81143.0,81130.0,0.269558]
[1731311524544,0.18536941,81143.0,81130.0,0.26903899]
[1731311524751,0.22221795,81143.0,81130.0,0.26903899]
[1731311524985,0.22221795,81143.0,81130.0,0.36903899]
[1731311525336,0.18536941,81143.0,81130.0,0.36903899]
[1731311526661,0.18536941,81143.0,81130.0,0.37003899]
[1731311526884,0.18536941,81143.0,81130.0,0.37203899]
[1731311527269,0.2222247,81143.0,81130.0,0.37203899]
[1731311527462,0.18536941,81143.0,81130.0,0.37203899]
[1731311527905,0.2222247,81143.0,81130.0,0.37203899]
[1731311528485,0.2222247,81143.0,81130.0,0.35523899]
[1731311528822,0.18536941,81143.0,81130.0,0.349558]
[1731311529028,0.18536941,81143.0,81130.0,0.35423117]
[1731311530281,0.2222247,81143.0,81130.0,0.35423117]
[1731311530481,0.18536941,81143.0,81130.0,0.35423117]
[1731311530891,0.2222247,81143.0,81130.0,0.35423117]
[1731311531124,0.18536941,81143.0,81130.0,0.35423117]
[1731311532157,0.2222247,81143.0,81130.0,0.35423117]
[1731311532736,0.2222247,81143.0,81130.0,0.30593117]
[1731311532979,0.11995529,81141.0,81130.0,0.13093117]
[1731311533184,0.03685529,81140.0,81130.0,0.13093117]
[1731311533390,0.03685529,81136.0,81130.0,0.23093117]
[1731311533597,0.03685529,81135.0,81130.0,0.23093117]
[1731311533799,0.03685529,81136.0,81130.0,0.23093117]
[1731311533999,0.05528294,81140.0,81130.0,0.23093117]
[1731311534000,0.03685529,81137.0,81130.0,0.22893117]
[1731311534456,0.03685529,81136.0,81130.0,0.22893117]
[1731311534917,0.03685529,81137.0,81130.0,0.22793117]
[1731311535047,0.03685529,81137.0,81130.0,0.22893117]
[1731311535269,0.03685529,81136.0,81130.0,0.22893117]
[1731311535475,0.03685529,81136.0,81130.0,0.22993117]
[1731311535678,0.03685529,81137.0,81130.0,0.22993117]
[1731311535883,0.03685529,81138.0,81130.0,0.23093117]
[1731311536088,0.03685529,81137.0,81130.0,0.23093117]
[1731311536384,0.03685529,81136.0,81130.0,0.13093117]
[1731311536766,0.03685529,81137.0,81130.0,0.13093117]
[1731311536982,0.03685529,81136.0,81130.0,0.13093117]
[1731311537399,0.03685529,81137.0,81130.0,0.13093117]
[1731311538570,0.03685529,81136.0,81130.0,0.13093117]
[1731311538999,0.03687183,81136.0,81130.0,0.13093117]
[1731311539661,0.07374366,81140.0,81130.0,0.13093117]
[1731311540749,0.19690041,81143.0,81130.0,0.13093117]
[1731311540964,0.19690041,81143.0,81130.0,0.126258]
[1731311540965,0.011531,81142.0,81130.0,0.126258]
[1731311541125,0.002,81140.0,81130.0,0.126258]
[1731311541321,0.011531,81139.0,81130.0,0.126258]
[1731311541734,0.011531,81142.0,81130.0,0.126258]
[1731311542094,0.011531,81141.0,81130.0,0.126258]
[1731311542222,0.011531,81140.0,81130.0,0.126258]
[1731311542414,0.011531,81142.0,81130.0,0.126258]
[1731311542795,0.19690049,81143.0,81130.0,0.126258]
[1731311542918,0.01153108,81142.0,81130.0,0.126258]
[1731311544046,0.0462,81137.0,81130.0,0.126258]
[1731311544457,0.02390323,81131.0,81130.0,0.126258]
[1731311545850,0.02390323,81131.0,81130.0,0.26940171]
[1731311546049,0.000841,81131.0,81130.0,0.49320171]
[1731311548543,0.000841,81131.0,81130.0,0.126258]
[1731311548705,0.02390116,81131.0,81130.0,0.126258]
[1731311549639,0.000841,81131.0,81130.0,0.126258]
[1731311549839,0.02390041,81131.0,81130.0,0.126258]
[1731311550418,0.06079501,81131.0,81130.0,0.126258]
[1731311550960,0.19694575,81131.0,81130.0,0.126258]
[1731311551318,0.20847413,81131.0,81130.0,0.126258]
[1731311552317,0.19694575,81131.0,81130.0,0.126258]
[1731311553413,0.30068192,81131.0,81130.0,0.126258]
[1731311553575,0.20847401,81131.0,81130.0,0.127942]
[1731311553776,0.30068192,81131.0,81130.0,0.127942]
[1731311555573,0.20847401,81131.0,81130.0,0.127942]
[1731311555915,0.20846412,81131.0,81130.0,0.127942]
[1731311556123,0.30066533,81131.0,81130.0,0.127942]
[1731311556462,0.19693586,81131.0,81130.0,0.127942]
[1731311556760,0.19691997,81131.0,81130.0,0.127942]
[1731311557375,0.19691812,81131.0,81130.0,0.127942]
[1731311558689,0.27066561,81131.0,81130.0,0.127942]
[1731311559678,0.23378175,81131.0,81130.0,0.127942]
[1731311559852,0.16003426,81131.0,81130.0,0.127942]
[1731311560242,0.16003426,81131.0,81130.0,0.209642]
[1731311560440,0.02389341,81131.0,81130.0,0.209642]
[1731311560645,0.07919909,81131.0,81130.0,0.209642]
[1731311561383,0.07919909,81131.0,81130.0,0.21430975]
[1731311562366,0.07919909,81131.0,81130.0,0.209642]
[1731311562909,0.02389341,81131.0,81130.0,0.21435888]
[1731311563061,0.000841,81131.0,81130.0,0.21435888]
[1731311563268,0.02389706,81131.0,81130.0,0.21435888]
[1731311563646,0.07920274,81131.0,81130.0,0.21435888]
[1731311563846,0.07920401,81131.0,81130.0,0.21435888]
[1731311564485,0.02389833,81131.0,81130.0,0.21435888]
[1731311564688,0.07920108,81131.0,81130.0,0.21435888]
[1731311565783,0.07920108,81131.0,81130.0,0.209642]
[1731311566773,0.11609442,81131.0,81130.0,0.004684]
[1731311566971,0.28216319,81131.0,81130.0,0.127942]
[1731311567096,0.2084157,81131.0,81130.0,0.127942]
[1731311567497,0.20841804,81131.0,81130.0,0.127942]
[1731311569452,0.33436025,81131.0,81130.0,0.127942]
[1731311569632,0.33636025,81131.0,81130.0,0.127942]
[1731311570034,0.42656146,81131.0,81130.0,0.127942]
[1731311571250,0.42656726,81131.0,81130.0,0.127942]
[1731311571623,0.42656726,81131.0,81130.0,0.004684]
[1731311572040,0.33436605,81131.0,81130.0,0.004684]
[1731311572441,0.33436605,81131.0,81130.0,0.127942]
[1731311573223,0.38710928,81131.0,81130.0,0.004684]
[1731311573391,0.42400698,81131.0,81130.0,0.004684]
[1731311573570,0.38710928,81131.0,81130.0,0.004684]
[1731311573936,0.35281311,81131.0,81130.0,0.004684]
[1731311574185,0.46345456,81131.0,81130.0,0.004684]
[1731311574396,0.46545456,81131.0,81130.0,0.004684]
[1731311574757,0.39396493,81131.0,81130.0,0.001684]
[1731311575060,0.46544164,81131.0,81130.0,0.001684]
[1731311575252,0.46544164,81131.0,81130.0,0.003684]
[1731311575253,0.6026816,81131.0,81130.0,0.003684]
[1731311575453,0.36881146,81131.0,81130.0,0.003684]
[1731311575686,0.47941982,81131.0,81130.0,0.003684]
[1731311575887,0.60267682,81131.0,81130.0,0.003684]
[1731311576061,0.60267682,81131.0,81123.0,0.123268]
[1731311576062,0.002,81130.0,81123.0,0.123268]
[1731311576366,0.002,81130.0,81121.0,0.18705341]
[1731311576367,0.123271,81122.0,81121.0,0.18705341]
[1731311576674,0.69160422,81122.0,81121.0,0.001684]
[1731311576874,0.71004982,81122.0,81121.0,0.001684]
[1731311577012,0.59944146,81122.0,81121.0,0.001684]
[1731311577203,0.56676791,81122.0,81121.0,0.001684]
[1731311577411,0.57331294,81122.0,81121.0,0.001684]
[1731311577612,0.69658394,81122.0,81121.0,0.001684]
[1731311577820,0.60944146,81122.0,81121.0,0.001684]
[1731311578061,0.61244146,81122.0,81121.0,0.001684]
[1731311578309,0.58246736,81122.0,81121.0,0.001684]
[1731311578539,0.0814,81111.0,81110.0,0.18536941]
[1731311578697,0.41492303,81111.0,81110.0,0.18536941]
[1731311578872,0.20758082,81111.0,81110.0,0.30865841]
[1731311579074,0.02305698,81111.0,81110.0,0.41840942]
[1731311579338,0.03683996,81119.0,81117.0,0.123278]
[1731311579465,0.20839315,81118.0,81117.0,0.123278]
[1731311579840,0.02302374,81118.0,81117.0,0.123278]
[1731311581076,0.02302352,81118.0,81115.0,0.369844]
[1731311581294,0.02302352,81117.0,81116.0,0.12328]
[1731311582325,0.02302352,81117.0,81116.0,0.12628]
[1731311583325,0.05525258,81125.0,81121.0,0.246544]
[1731311583477,0.25903952,81127.0,81121.0,0.246544]
[1731311583478,0.05985771,81124.0,81121.0,0.246544]
[1731311583836,0.05525258,81126.0,81118.0,0.246553]
[1731311583837,0.02302225,81123.0,81122.0,0.123271]
[1731311584342,0.05985846,81123.0,81121.0,0.123271]
[1731311584525,0.15096446,81122.0,81113.0,0.246567]
[1731311584723,0.15096446,81122.0,81121.0,0.123272]
[1731311584724,0.18319479,81122.0,81121.0,0.123272]
[1731311584933,0.18319479,81122.0,81121.0,0.124272]
[1731311584934,0.14896536,81122.0,81121.0,0.124272]
[1731311585084,0.185803,81122.0,81121.0,0.123272]
[1731311585290,0.32179399,81122.0,81121.0,0.123272]
[1731311585559,0.32179399,81122.0,81121.0,0.124272]
[1731311585759,0.185803,81122.0,81121.0,0.123272]
[1731311586034,0.07828298,81122.0,81121.0,0.124272]
[1731311586281,0.11512062,81122.0,81121.0,0.124272]
[1731311586460,0.07828298,81122.0,81121.0,0.124272]
[1731311586679,0.11512062,81122.0,81121.0,0.124272]
[1731311586830,0.07828298,81122.0,81121.0,0.124272]
[1731311587198,0.07828241,81122.0,81121.0,0.124272]
[1731311587603,0.05525926,81122.0,81121.0,0.124272]
[1731311587809,0.07828231,81122.0,81121.0,0.124272]
[1731311588210,0.07828137,81122.0,81121.0,0.123272]
[1731311588629,0.02302282,81122.0,81121.0,0.124272]
[1731311588756,0.05986117,81122.0,81121.0,0.172172]
[1731311588961,0.02386482,81122.0,81121.0,0.253072]
[1731311589350,0.02386482,81122.0,81121.0,0.254072]
[1731311590388,0.000842,81122.0,81121.0,0.254072]
[1731311590771,0.02386645,81122.0,81121.0,0.254072]
[1731311591499,0.03768035,81122.0,81121.0,0.254072]
[1731311591796,0.000842,81122.0,81121.0,0.254072]
[1731311592980,0.02386689,81122.0,81121.0,0.254072]
[1731311593194,0.000842,81122.0,81121.0,0.254072]
[1731311594402,0.000842,81122.0,81121.0,0.253072]
[1731311594604,0.000842,81122.0,81121.0,0.254072]
[1731311595449,0.000842,81122.0,81121.0,0.253072]
[1731311595832,0.000842,81122.0,81121.0,0.256072]
[1731311597821,0.02387585,81122.0,81121.0,0.256072]
[1731311598023,0.02387585,81122.0,81121.0,0.208172]
[1731311598210,0.06072853,81122.0,81121.0,0.208172]
[1731311599761,0.02387585,81122.0,81121.0,0.208172]
[1731311599962,0.06073681,81122.0,81121.0,0.208172]
[1731311600161,0.02387585,81122.0,81121.0,0.208172]
[1731311600571,0.02387585,81122.0,81121.0,0.254072]
[1731311601151,0.000842,81122.0,81121.0,0.254072]
[1731311601552,0.000842,81122.0,81121.0,0.251072]
[1731311601757,0.000842,81122.0,81121.0,0.254072]
[1731311601963,0.000842,81122.0,81121.0,0.255756]
[1731311607061,0.000842,81122.0,81065.0,0.0816]
[1731311607062,0.005,81079.0,81065.0,0.0816]
[1731311607408,0.005,81067.0,81065.0,0.246713]
[1731311607536,0.02803452,81066.0,81065.0,0.37007]
[1731311607730,0.005,81066.0,81065.0,0.37007]
[1731311608164,0.005,81066.0,81065.0,0.123357]
[1731311608381,0.005,81061.0,81058.0,0.001686]
[1731311608541,0.02805382,81061.0,81058.0,0.001686]
[1731311608743,0.005,81061.0,81060.0,0.125051]
[1731311609057,0.02807968,81061.0,81060.0,0.125051]
[1731311611535,0.02807968,81061.0,81060.0,0.128051]
[1731311614660,0.15402189,81061.0,81060.0,0.128051]
[1731311621354,0.15403214,81061.0,81060.0,0.128051]
[1731311626154,0.13094221,81061.0,81060.0,0.128051]
[1731311626492,0.1540293,81061.0,81060.0,0.128051]
[1731311626700,0.13094221,81061.0,81060.0,0.128051]
[1731311626856,0.15402783,81061.0,81060.0,0.128051]
[1731311627477,0.02808562,81061.0,81060.0,0.128051]
[1731311628055,0.005,81061.0,81060.0,0.128051]
[1731311632189,0.005,81067.0,81066.0,0.123356]
[1731311632389,0.005,81073.0,81072.0,0.123347]
[1731311632655,0.005,81073.0,81072.0,0.26649071]
[1731311634579,0.01,81073.0,81072.0,0.26649071]
[1731311634976,0.015,81073.0,81072.0,0.26649071]
[1731311635184,0.01,81073.0,81072.0,0.26649071]
[1731311635386,0.005,81082.0,81072.0,0.26649071]
[1731311635387,0.005,81103.0,81077.0,0.246679]
[1731311635580,0.19004697,81108.0,81094.0,0.123313]
[1731311635581,0.18504697,81095.0,81094.0,0.123313]
[1731311635740,0.12594221,81102.0,81101.0,0.123303]
[1731311636347,0.12594221,81102.0,81101.0,0.26644671]
[1731311637887,0.005,81115.0,81102.0,0.246603]
[1731311638090,0.12594221,81114.0,81113.0,0.123284]
[1731311639417,0.12994221,81114.0,81113.0,0.124284]
[1731311639621,0.13594221,81114.0,81113.0,0.125284]
[1731311640549,0.13194221,81114.0,81113.0,0.26742771]
[1731311640786,0.13794221,81114.0,81113.0,0.26742771]
[1731311642209,0.13794221,81114.0,81113.0,0.27215536]
[1731311643582,0.13194221,81114.0,81113.0,0.27215536]
[1731311643987,0.13194221,81114.0,81113.0,0.27515536]
[1731311644184,0.13194221,81114.0,81113.0,0.27215536]
[1731311644364,0.13194221,81114.0,81113.0,0.27115536]
[1731311644577,0.12594221,81114.0,81113.0,0.27415536]
[1731311644875,0.12594221,81114.0,81113.0,0.27615536]
[1731311645300,0.12594221,81114.0,81113.0,0.27415536]
[1731311645519,0.12594221,81114.0,81113.0,0.27615536]
[1731311647149,0.12594221,81114.0,81113.0,0.128284]
[1731311647449,0.12594221,81114.0,81113.0,0.123284]
[1731311647753,0.12594221,81114.0,81113.0,0.128284]
[1731311647895,0.12594221,81114.0,81113.0,0.125284]
[1731311648105,0.12594221,81114.0,81113.0,0.126284]
[1731311648396,0.12594221,81114.0,81113.0,0.125284]
[1731311648612,0.12762821,81114.0,81113.0,0.125284]
[1731311648816,0.12762821,81114.0,81113.0,0.126284]
[1731311650093,0.12762821,81114.0,81113.0,0.123284]
[1731311650220,0.12762821,81114.0,81113.0,0.125284]
[1731311650729,0.12762821,81114.0,81113.0,0.128284]
[1731311651084,0.12762821,81114.0,81113.0,0.125284]
[1731311651379,0.12762821,81114.0,81113.0,0.128284]
[1731311651749,0.12762821,81114.0,81113.0,0.126284]
[1731311652309,0.12762821,81114.0,81113.0,0.125284]
[1731311653040,0.12762821,81114.0,81113.0,0.128284]
[1731311653277,0.12762821,81114.0,81113.0,0.126284]
[1731311653727,0.12762821,81114.0,81113.0,0.128284]
[1731311654113,0.12762821,81114.0,81113.0,0.125284]
[1731311654532,0.12762821,81114.0,81113.0,0.128284]
[1731311656372,0.12762821,81114.0,81113.0,0.126284]
[1731311656577,0.12762821,81114.0,81113.0,0.128284]
[1731311657146,0.12762821,81114.0,81113.0,0.126284]
[1731311657327,0.12762821,81114.0,81113.0,0.123284]
[1731311657552,0.12762821,81114.0,81113.0,0.125284]
[1731311657828,0.12762821,81114.0,81113.0,0.128284]
[1731311659884,0.12762821,81114.0,81113.0,0.126284]
[1731311660322,0.12762821,81114.0,81113.0,0.125284]
[1731311660641,0.12762821,81114.0,81113.0,0.128284]
[1731311660868,0.12762821,81114.0,81113.0,0.123284]
[1731311661070,0.12762821,81114.0,81113.0,0.125284]
[1731311661270,0.12262821,81114.0,81113.0,0.128284]
[1731311662999,0.12262821,81114.0,81113.0,0.126284]
[1731311663361,0.12262821,81114.0,81113.0,0.125284]
[1731311663564,0.12262821,81114.0,81113.0,0.12781557]
[1731311666915,0.12262821,81114.0,81113.0,0.12281557]
[1731311667114,0.12262821,81114.0,81113.0,0.12481557]
[1731311667319,0.12262821,81114.0,81113.0,0.12781557]
[1731311667551,0.12262821,81114.0,81113.0,0.12481557]
[1731311667803,0.12262821,81114.0,81113.0,0.20421557]
[1731311667957,0.001686,81114.0,81113.0,0.20421557]
[1731311668155,0.001686,81114.0,81113.0,0.20121557]
[1731311668336,0.001686,81114.0,81113.0,0.20421557]
[1731311668928,0.001686,81114.0,81113.0,0.20221557]
[1731311669329,0.001686,81114.0,81113.0,0.20421557]
[1731311669812,0.001686,81114.0,81113.0,0.19921557]
[1731311670186,0.12762821,81114.0,81113.0,0.12781557]
[1731311670980,0.12762821,81114.0,81113.0,0.12481557]
[1731311671179,0.12762821,81114.0,81113.0,0.12581557]
[1731311671445,0.12762821,81114.0,81113.0,1.12581557]
[1731311671660,0.12762821,81114.0,81113.0,1.12281557]
[1731311671795,0.12762821,81114.0,81113.0,1.12581557]
[1731311672538,0.12762821,81114.0,81113.0,1.12781557]
[1731311673092,0.12762821,81114.0,81113.0,1.12481557]
[1731311673580,0.12762821,81114.0,81113.0,1.12781557]
[1731311674776,0.12762821,81114.0,81113.0,1.12481557]
[1731311675382,0.12762821,81114.0,81113.0,1.12581557]
[1731311675733,0.12762821,81114.0,81113.0,1.12781557]
[1731311678013,0.001686,81114.0,81113.0,1.12781557]
[1731311678217,0.001686,81114.0,81113.0,1.17621557]
[1731311679205,0.001686,81114.0,81113.0,1.17421557]
[1731311679415,0.001686,81114.0,81113.0,1.17621557]
[1731311679617,0.001686,81114.0,81113.0,1.25271557]
[1731311679819,0.001686,81114.0,81113.0,1.25071557]
[1731311680158,0.001686,81114.0,81113.0,1.24971557]
[1731311680415,0.001686,81114.0,81113.0,1.25271557]
[1731311683707,0.001686,81114.0,81113.0,1.25355857]
[1731311684719,0.001686,81114.0,81113.0,1.34747706]
[1731311685169,0.001686,81114.0,81113.0,1.34247706]
[1731311685360,0.001686,81114.0,81113.0,1.34447706]
[1731311686515,0.001686,81114.0,81113.0,1.34747706]
[1731311688929,0.001686,81114.0,81113.0,1.12865857]
[1731311689131,0.12762821,81114.0,81113.0,1.12865857]
[1731311692994,0.35117403,81114.0,81113.0,1.005843]
[1731311693192,0.33991121,81114.0,81113.0,1.005843]
[1731311693349,0.005,81098.0,81097.0,0.18504697]
[1731311693548,0.13094221,81098.0,81097.0,0.30835597]
[1731311694093,0.13094221,81098.0,81097.0,0.123309]
[1731311694540,0.13094221,81098.0,81097.0,0.125309]
[1731311694678,0.13094221,81098.0,81097.0,0.128309]
[1731311695007,0.13094221,81098.0,81097.0,0.126309]
[1731311695210,0.13094221,81098.0,81097.0,0.128309]
[1731311696070,0.13094221,81098.0,81097.0,0.002]
[1731311696412,0.13094221,81098.0,81097.0,0.128309]
[1731311696763,0.13094221,81098.0,81097.0,0.125309]
[1731311696965,0.13094221,81098.0,81097.0,0.129152]
[1731311697782,0.13094221,81098.0,81097.0,0.127152]
[1731311698030,0.13094221,81098.0,81097.0,0.129152]
[1731311698489,0.13094221,81098.0,81097.0,0.127152]